Workbook

Sheet RCA Results Table
B1: DATA QUALITY RESULTS 2017/18 | PERCENTAGE AT THE EXPECTED STANDARD
B3: ONRC | M3: Asset Management
B4: Quality Dimension | E4: Data Sub-Category | M4: Quality Dimension | P4: Data Category | T4: Score
A5: RCA Name | B5: Accuracy | C5: Complete-ness | D5: Timeliness | E5: Carriageway | F5: Treatment Length | G5: Surfacing | H5: Maintenance Activity | I5: Roughness | J5: Traffic Count | K5: Traffic Estimates | L5: Crash | M5: Accuracy | N5: Complete-ness | O5: Timeliness | P5: Network | Q5: Asset Inventory | R5: Condition | S5: Maintenance Activity | T5: AM Score
A6: Ashburton District Council | B6: 87.5 | C6: 70 | D6: 16.66666667 | E6: 87.5 | F6: 25 | G6: 75 | H6: 100 | I6: 100 | J6: 33.33333333 | K6: 91.66666667 | L6: 50 | M6: 60 | N6: 50 | O6: 66.66666667 | P6: 100 | Q6: 42.85714286 | R6: 100 | S6: 75 | T6: 75
A7: Auckland Transport | B7: 83.33333333 | C7: 40 | D7: 50 | E7: 100 | F7: 50 | G7: 25 | H7: 66.66666667 | I7: 50 | J7: 66.66666667 | K7: 75 | L7: 0 | M7: 40 | N7: 50 | O7: 77.77777778 | P7: 50 | Q7: 57.14285714 | R7: 50 | S7: 50 | T7: 63
A8: Buller District Council | B8: 33.33333333 | C8: 50 | D8: 25 | E8: 50 | F8: 50 | G8: 0 | H8: 0 | I8: 100 | J8: 0 | K8: 100 | L8: 0 | M8: 20 | N8: 25 | O8: 11.11111111 | P8: 0 | Q8: 19.04761905 | R8: 100 | S8: 0 | T8: 40
A9: Carterton District Council | B9: 70.83333333 | C9: 70 | D9: 12.5 | E9: 87.5 | F9: 50 | G9: 25 | H9: 100 | I9: 100 | J9: 33.33333333 | K9: 62.5 | L9: 50 | M9: 50 | N9: 25 | O9: 66.66666667 | P9: 75 | Q9: 38.0952381 | R9: 50 | S9: 50 | T9: 56
A10: Central Hawke's Bay District Council | B10: 66.66666667 | C10: 60 | D10: 33.33333333 | E10: 100 | F10: 25 | G10: 25 | H10: 66.66666667 | I10: 100 | J10: 100 | K10: 58.33333333 | L10: 0 | M10: 40 | N10: 41.66666667 | O10: 44.44444444 | P10: 25 | Q10: 33.33333333 | R10: 100 | S10: 75 | T10: 56
A11: Central Otago District Council | B11: 62.5 | C11: 70 | D11: 33.33333333 | E11: 100 | F11: 37.5 | G11: 0 | H11: 66.66666667 | I11: 100 | J11: 100 | K11: 33.33333333 | L11: 50 | M11: 0 | N11: 66.66666667 | O11: 50 | P11: 25 | Q11: 45 | R11: 0 | S11: 50 | T11: 62
A12: Chatham Islands Council | B12: 54.16666667 | C12: 50 | D12: 50 | E12: 87.5 | F12: 0 | G12: 25 | H12: 33.33333333 | I12: 100 | J12: 66.66666667 | K12: 75 | L12: 0 | M12: 30 | N12: 33.33333333 | O12: 62.5 | P12: 50 | Q12: 45 | R12: 0 | S12: 25 | T12: 55
A13: Christchurch City Council | B13: 66.66666667 | C13: 40 | D13: 25 | E13: 75 | F13: 25 | G13: 25 | H13: 66.66666667 | I13: 100 | J13: 0 | K13: 100 | L13: 0 | M13: 40 | N13: 33.33333333 | O13: 55.55555556 | P13: 50 | Q13: 42.85714286 | R13: 50 | S13: 25 | T13: 57
A14: Clutha District Council | B14: 70.83333333 | C14: 60 | D14: 75 | E14: 87.5 | F14: 50 | G14: 25 | H14: 66.66666667 | I14: 100 | J14: 100 | K14: 75 | L14: 50 | M14: 50 | N14: 58.33333333 | O14: 33.33333333 | P14: 75 | Q14: 33.33333333 | R14: 100 | S14: 75 | T14: 61
A15: DOC Roads | B15: 25 | C15: 50 | D15: 25 | E15: 50 | F15: 25 | G15: 0 | H15: 0 | I15: 100 | J15: 0 | K15: 75 | L15: 50 | M15: 20 | N15: 0 | O15: 57.14285714 | P15: 25 | Q15: 26.31578947 | R15: 0 | S15: 0 | T15: 34
A16: Dunedin City Council | B16: 100 | C16: 90 | D16: 25 | E16: 100 | F16: 50 | G16: 100 | H16: 100 | I16: 100 | J16: 66.66666667 | K16: 100 | L16: 50 | M16: 50 | N16: 66.66666667 | O16: 66.66666667 | P16: 100 | Q16: 47.61904762 | R16: 100 | S16: 75 | T16: 72
A17: Far North District Council | B17: 79.16666667 | C17: 50 | D17: 41.66666667 | E17: 75 | F17: 37.5 | G17: 50 | H17: 66.66666667 | I17: 100 | J17: 66.66666667 | K17: 41.66666667 | L17: 50 | M17: 20 | N17: 50 | O17: 66.66666667 | P17: 50 | Q17: 47.61904762 | R17: 0 | S17: 50 | T17: 60
A18: Gisborne District Council | B18: 66.66666667 | C18: 50 | D18: 8.333333333 | E18: 100 | F18: 0 | G18: 25 | H18: 100 | I18: 100 | J18: 0 | K18: 58.33333333 | L18: 50 | M18: 30 | N18: 50 | O18: 33.33333333 | P18: 25 | Q18: 42.85714286 | R18: 0 | S18: 50 | T18: 54
A19: Gore District Council | B19: 62.5 | C19: 40 | D19: 12.5 | E19: 100 | F19: 12.5 | G19: 25 | H19: 33.33333333 | I19: 50 | J19: 0 | K19: 62.5 | L19: 50 | M19: 50 | N19: 33.33333333 | O19: 12.5 | P19: 50 | Q19: 20 | R19: 50 | S19: 75 | T19: 51
A20: Grey District Council | B20: 41.66666667 | C20: 20 | D20: 0 | E20: 87.5 | F20: 12.5 | G20: 0 | H20: 0 | I20: 100 | J20: 0 | K20: 0 | L20: 50 | M20: 40 | N20: 8.333333333 | O20: 0 | P20: 0 | Q20: 19.04761905 | R20: 50 | S20: 0 | T20: 36
A21: Hamilton City Council | B21: 83.33333333 | C21: 60 | D21: 25 | E21: 100 | F21: 50 | G21: 75 | H21: 100 | I21: 50 | J21: 0 | K21: 100 | L21: 0 | M21: 40 | N21: 75 | O21: 83.33333333 | P21: 25 | Q21: 73.80952381 | R21: 50 | S21: 75 | T21: 74
A22: Hastings District Council | B22: 75 | C22: 50 | D22: 25 | E22: 100 | F22: 0 | G22: 50 | H22: 100 | I22: 50 | J22: 66.66666667 | K22: 50 | L22: 50 | M22: 60 | N22: 50 | O22: 55.55555556 | P22: 50 | Q22: 52.38095238 | R22: 50 | S22: 75 | T22: 68
A23: Hauraki District Council | B23: 75 | C23: 90 | D23: 58.33333333 | E23: 100 | F23: 100 | G23: 50 | H23: 100 | I23: 100 | J23: 66.66666667 | K23: 58.33333333 | L23: 50 | M23: 60 | N23: 83.33333333 | O23: 55.55555556 | P23: 25 | Q23: 76.19047619 | R23: 50 | S23: 75 | T23: 80
A24: Horowhenua District Council | B24: 62.5 | C24: 50 | D24: 8.333333333 | E24: 75 | F24: 37.5 | G24: 0 | H24: 66.66666667 | I24: 50 | J24: 66.66666667 | K24: 58.33333333 | L24: 50 | M24: 20 | N24: 50 | O24: 44.44444444 | P24: 50 | Q24: 38.0952381 | R24: 0 | S24: 50 | T24: 53
A25: Hurunui District Council | B25: 70.83333333 | C25: 60 | D25: 25 | E25: 100 | F25: 37.5 | G25: 0 | H25: 66.66666667 | I25: 100 | J25: 33.33333333 | K25: 100 | L25: 50 | M25: 50 | N25: 33.33333333 | O25: 66.66666667 | P25: 50 | Q25: 47.61904762 | R25: 100 | S25: 25 | T25: 57
A26: Hutt City Council | B26: 75 | C26: 40 | D26: 16.66666667 | E26: 100 | F26: 25 | G26: 25 | H26: 33.33333333 | I26: 100 | J26: 0 | K26: 91.66666667 | L26: 0 | M26: 30 | N26: 33.33333333 | O26: 22.22222222 | P26: 25 | Q26: 23.80952381 | R26: 50 | S26: 50 | T26: 52
A27: Invercargill City Council | B27: 91.66666667 | C27: 50 | D27: 16.66666667 | E27: 100 | F27: 75 | G27: 25 | H27: 66.66666667 | I27: 100 | J27: 33.33333333 | K27: 66.66666667 | L27: 50 | M27: 30 | N27: 83.33333333 | O27: 22.22222222 | P27: 75 | Q27: 38.0952381 | R27: 100 | S27: 50 | T27: 62
A28: Kaikoura District Council | B28: 50 | C28: 40 | D28: 25 | E28: 50 | F28: 25 | G28: 25 | H28: 0 | I28: 100 | J28: 66.66666667 | K28: 50 | L28: 50 | M28: 30 | N28: 8.333333333 | O28: 28.57142857 | P28: 25 | Q28: 26.31578947 | R28: 0 | S28: 0 | T28: 42
A29: Kaipara District Council | B29: 66.66666667 | C29: 40 | D29: 25 | E29: 62.5 | F29: 37.5 | G29: 0 | H29: 100 | I29: 100 | J29: 0 | K29: 75 | L29: 50 | M29: 40 | N29: 58.33333333 | O29: 66.66666667 | P29: 25 | Q29: 61.9047619 | R29: 0 | S29: 75 | T29: 60
A30: Kapiti Coast District Council | B30: 100 | C30: 70 | D30: 50 | E30: 100 | F30: 100 | G30: 50 | H30: 100 | I30: 100 | J30: 100 | K30: 50 | L30: 50 | M30: 50 | N30: 75 | O30: 66.66666667 | P30: 25 | Q30: 71.42857143 | R30: 100 | S30: 50 | T30: 72
A31: Kawerau District Council | B31: 58.33333333 | C31: 50 | D31: 12.5 | E31: 100 | F31: 75 | G31: 0 | H31: 0 | I31: 50 | J31: 0 | K31: 87.5 | L31: 50 | M31: 40 | N31: 8.333333333 | O31: 0 | P31: 75 | Q31: 9.523809524 | R31: 0 | S31: 0 | T31: 34
A32: MacKenzie District Council | B32: 70.83333333 | C32: 70 | D32: 25 | E32: 62.5 | F32: 50 | G32: 75 | H32: 66.66666667 | I32: 100 | J32: 33.33333333 | K32: 50 | L32: 50 | M32: 20 | N32: 33.33333333 | O32: 33.33333333 | P32: 25 | Q32: 28.57142857 | R32: 0 | S32: 50 | T32: 57
A33: Manawatu District Council | B33: 50 | C33: 50 | D33: 25 | E33: 75 | F33: 25 | G33: 0 | H33: 66.66666667 | I33: 50 | J33: 66.66666667 | K33: 25 | L33: 50 | M33: 30 | N33: 25 | O33: 55.55555556 | P33: 25 | Q33: 38.0952381 | R33: 0 | S33: 50 | T33: 47
A34: Marlborough District Council | B34: 79.16666667 | C34: 60 | D34: 41.66666667 | E34: 100 | F34: 37.5 | G34: 50 | H34: 66.66666667 | I34: 100 | J34: 66.66666667 | K34: 66.66666667 | L34: 50 | M34: 20 | N34: 58.33333333 | O34: 33.33333333 | P34: 25 | Q34: 33.33333333 | R34: 100 | S34: 50 | T34: 50
A35: Masterton District Council | B35: 58.33333333 | C35: 70 | D35: 0 | E35: 100 | F35: 25 | G35: 25 | H35: 66.66666667 | I35: 100 | J35: 33.33333333 | K35: 50 | L35: 0 | M35: 40 | N35: 41.66666667 | O35: 44.44444444 | P35: 75 | Q35: 33.33333333 | R35: 100 | S35: 25 | T35: 58
A36: Matamata-Piako District Council | B36: 70.83333333 | C36: 100 | D36: 75 | E36: 87.5 | F36: 75 | G36: 50 | H36: 100 | I36: 100 | J36: 100 | K36: 100 | L36: 50 | M36: 40 | N36: 50 | O36: 50 | P36: 50 | Q36: 40.47619048 | R36: 50 | S36: 75 | T36: 67
A37: Napier City Council | B37: 66.66666667 | C37: 70 | D37: 50 | E37: 75 | F37: 25 | G37: 75 | H37: 100 | I37: 100 | J37: 66.66666667 | K37: 75 | L37: 0 | M37: 40 | N37: 58.33333333 | O37: 72.22222222 | P37: 25 | Q37: 54.76190476 | R37: 100 | S37: 75 | T37: 62
A38: Nelson City Council | B38: 37.5 | C38: 40 | D38: 25 | E38: 50 | F38: 12.5 | G38: 0 | H38: 66.66666667 | I38: 100 | J38: 66.66666667 | K38: 50 | L38: 0 | M38: 20 | N38: 41.66666667 | O38: 55.55555556 | P38: 25 | Q38: 42.85714286 | R38: 0 | S38: 50 | T38: 51
A39: New Plymouth District Council | B39: 70.83333333 | C39: 60 | D39: 25 | E39: 75 | F39: 37.5 | G39: 25 | H39: 100 | I39: 100 | J39: 100 | K39: 25 | L39: 50 | M39: 60 | N39: 25 | O39: 11.11111111 | P39: 50 | Q39: 23.80952381 | R39: 50 | S39: 50 | T39: 50
A40: Opotiki District Council | B40: 79.16666667 | C40: 60 | D40: 50 | E40: 100 | F40: 87.5 | G40: 50 | H40: 66.66666667 | I40: 100 | J40: 66.66666667 | K40: 25 | L40: 0 | M40: 40 | N40: 66.66666667 | O40: 33.33333333 | P40: 50 | Q40: 42.85714286 | R40: 100 | S40: 50 | T40: 59
A41: Otorohanga District Council | B41: 83.33333333 | C41: 100 | D41: 62.5 | E41: 87.5 | F41: 87.5 | G41: 100 | H41: 66.66666667 | I41: 100 | J41: 100 | K41: 62.5 | L41: 50 | M41: 60 | N41: 58.33333333 | O41: 44.44444444 | P41: 75 | Q41: 47.61904762 | R41: 50 | S41: 75 | T41: 72
A42: Palmerston North City Council | B42: 25 | C42: 40 | D42: 0 | E42: 87.5 | F42: 12.5 | G42: 0 | H42: 33.33333333 | I42: 50 | J42: 33.33333333 | K42: 25 | L42: 0 | M42: 20 | N42: 58.33333333 | O42: 11.11111111 | P42: 25 | Q42: 23.80952381 | R42: 100 | S42: 50 | T42: 48
A43: Porirua City Council | B43: 83.33333333 | C43: 60 | D43: 25 | E43: 100 | F43: 25 | G43: 50 | H43: 100 | I43: 100 | J43: 33.33333333 | K43: 100 | L43: 0 | M43: 30 | N43: 41.66666667 | O43: 33.33333333 | P43: 0 | Q43: 28.57142857 | R43: 100 | S43: 75 | T43: 53
A44: Queenstown-Lakes District Council | B44: 50 | C44: 40 | D44: 25 | E44: 37.5 | F44: 12.5 | G44: 25 | H44: 100 | I44: 100 | J44: 33.33333333 | K44: 50 | L44: 0 | M44: 30 | N44: 58.33333333 | O44: 62.5 | P44: 25 | Q44: 55 | R44: 0 | S44: 75 | T44: 62
A45: Rangitikei District Council | B45: 75 | C45: 60 | D45: 25 | E45: 87.5 | F45: 87.5 | G45: 50 | H45: 100 | I45: 100 | J45: 33.33333333 | K45: 25 | L45: 0 | M45: 20 | N45: 41.66666667 | O45: 33.33333333 | P45: 25 | Q45: 28.57142857 | R45: 0 | S45: 75 | T45: 44
A46: Rotorua Lakes Council | B46: 83.33333333 | C46: 40 | D46: 25 | E46: 87.5 | F46: 62.5 | G46: 50 | H46: 66.66666667 | I46: 50 | J46: 33.33333333 | K46: 25 | L46: 50 | M46: 60 | N46: 50 | O46: 44.44444444 | P46: 75 | Q46: 42.85714286 | R46: 100 | S46: 50 | T46: 63
A47: Ruapehu District Council | B47: 75 | C47: 60 | D47: 25 | E47: 75 | F47: 50 | G47: 25 | H47: 66.66666667 | I47: 100 | J47: 0 | K47: 100 | L47: 50 | M47: 50 | N47: 41.66666667 | O47: 11.11111111 | P47: 50 | Q47: 23.80952381 | R47: 100 | S47: 50 | T47: 57
A48: Selwyn District Council | B48: 66.66666667 | C48: 90 | D48: 50 | E48: 100 | F48: 25 | G48: 25 | H48: 100 | I48: 100 | J48: 100 | K48: 100 | L48: 50 | M48: 80 | N48: 75 | O48: 27.77777778 | P48: 100 | Q48: 50 | R48: 100 | S48: 75 | T48: 79
A49: South Taranaki District Council | B49: 79.16666667 | C49: 80 | D49: 25 | E49: 75 | F49: 62.5 | G49: 75 | H49: 100 | I49: 100 | J49: 33.33333333 | K49: 75 | L49: 50 | M49: 40 | N49: 58.33333333 | O49: 44.44444444 | P49: 25 | Q49: 52.38095238 | R49: 100 | S49: 25 | T49: 68
A50: South Waikato District Council | B50: 50 | C50: 60 | D50: 75 | E50: 50 | F50: 100 | G50: 25 | H50: 33.33333333 | I50: 50 | J50: 100 | K50: 75 | L50: 50 | M50: 40 | N50: 58.33333333 | O50: 22.22222222 | P50: 25 | Q50: 38.0952381 | R50: 50 | S50: 75 | T50: 56
A51: South Wairarapa District Council | B51: 70.83333333 | C51: 50 | D51: 25 | E51: 100 | F51: 62.5 | G51: 25 | H51: 100 | I51: 100 | J51: 33.33333333 | K51: 0 | L51: 50 | M51: 40 | N51: 50 | O51: 44.44444444 | P51: 75 | Q51: 33.33333333 | R51: 100 | S51: 50 | T51: 60
A52: Southland District Council | B52: 75 | C52: 80 | D52: 25 | E52: 87.5 | F52: 37.5 | G52: 50 | H52: 66.66666667 | I52: 100 | J52: 33.33333333 | K52: 100 | L52: 50 | M52: 60 | N52: 75 | O52: 33.33333333 | P52: 100 | Q52: 47.61904762 | R52: 100 | S52: 50 | T52: 73
A53: Stratford District Council | B53: 33.33333333 | C53: 30 | D53: 25 | E53: 75 | F53: 0 | G53: 0 | H53: 0 | I53: 100 | J53: 66.66666667 | K53: 0 | L53: 50 | M53: 30 | N53: 41.66666667 | O53: 22.22222222 | P53: 25 | Q53: 38.0952381 | R53: 50 | S53: 0 | T53: 44
A54: Tararua District Council | B54: 54.16666667 | C54: 50 | D54: 25 | E54: 87.5 | F54: 75 | G54: 0 | H54: 0 | I54: 100 | J54: 33.33333333 | K54: 50 | L54: 50 | M54: 50 | N54: 16.66666667 | O54: 33.33333333 | P54: 100 | Q54: 28.57142857 | R54: 0 | S54: 0 | T54: 49
A55: Tasman District Council | B55: 62.5 | C55: 80 | D55: 50 | E55: 100 | F55: 62.5 | G55: 0 | H55: 66.66666667 | I55: 100 | J55: 100 | K55: 50 | L55: 50 | M55: 40 | N55: 41.66666667 | O55: 50 | P55: 50 | Q55: 30 | R55: 100 | S55: 75 | T55: 61
A56: Taupo District Council | B56: 54.16666667 | C56: 60 | D56: 25 | E56: 100 | F56: 12.5 | G56: 50 | H56: 66.66666667 | I56: 50 | J56: 100 | K56: 0 | L56: 50 | M56: 40 | N56: 58.33333333 | O56: 55.55555556 | P56: 75 | Q56: 42.85714286 | R56: 50 | S56: 75 | T56: 65
A57: Tauranga City Council | B57: 58.33333333 | C57: 50 | D57: 16.66666667 | E57: 100 | F57: 50 | G57: 25 | H57: 66.66666667 | I57: 100 | J57: 0 | K57: 66.66666667 | L57: 0 | M57: 30 | N57: 66.66666667 | O57: 77.77777778 | P57: 0 | Q57: 66.66666667 | R57: 50 | S57: 75 | T57: 61
A58: Thames-Coromandel District Council | B58: 62.5 | C58: 40 | D58: 37.5 | E58: 87.5 | F58: 75 | G58: 25 | H58: 0 | I58: 100 | J58: 0 | K58: 62.5 | L58: 50 | M58: 40 | N58: 33.33333333 | O58: 44.44444444 | P58: 0 | Q58: 52.38095238 | R58: 50 | S58: 0 | T58: 50
A59: Timaru District Council | B59: 87.5 | C59: 100 | D59: 50 | E59: 87.5 | F59: 75 | G59: 75 | H59: 100 | I59: 100 | J59: 100 | K59: 100 | L59: 50 | M59: 50 | N59: 66.66666667 | O59: 55.55555556 | P59: 50 | Q59: 57.14285714 | R59: 100 | S59: 50 | T59: 72
A60: Upper Hutt City Council | B60: 70.83333333 | C60: 60 | D60: 50 | E60: 87.5 | F60: 75 | G60: 25 | H60: 66.66666667 | I60: 100 | J60: 66.66666667 | K60: 25 | L60: 50 | M60: 30 | N60: 50 | O60: 62.5 | P60: 25 | Q60: 55 | R60: 50 | S60: 25 | T60: 56
A61: Waikato District Council | B61: 75 | C61: 40 | D61: 50 | E61: 75 | F61: 50 | G61: 50 | H61: 66.66666667 | I61: 100 | J61: 33.33333333 | K61: 50 | L61: 50 | M61: 30 | N61: 66.66666667 | O61: 77.77777778 | P61: 0 | Q61: 66.66666667 | R61: 100 | S61: 50 | T61: 59
A62: Waimakariri District Council | B62: 58.33333333 | C62: 70 | D62: 41.66666667 | E62: 75 | F62: 0 | G62: 25 | H62: 100 | I62: 100 | J62: 100 | K62: 66.66666667 | L62: 50 | M62: 20 | N62: 50 | O62: 77.77777778 | P62: 0 | Q62: 52.38095238 | R62: 50 | S62: 75 | T62: 54
A63: Waimate District Council | B63: 95.83333333 | C63: 60 | D63: 50 | E63: 100 | F63: 62.5 | G63: 50 | H63: 66.66666667 | I63: 100 | J63: 66.66666667 | K63: 75 | L63: 50 | M63: 50 | N63: 66.66666667 | O63: 22.22222222 | P63: 75 | Q63: 38.0952381 | R63: 100 | S63: 50 | T63: 72
A64: Waipa District Council | B64: 70.83333333 | C64: 90 | D64: 41.66666667 | E64: 100 | F64: 37.5 | G64: 50 | H64: 100 | I64: 100 | J64: 100 | K64: 66.66666667 | L64: 50 | M64: 50 | N64: 75 | O64: 77.77777778 | P64: 50 | Q64: 76.19047619 | R64: 50 | S64: 50 | T64: 83
A65: Wairoa District Council | B65: 37.5 | C65: 80 | D65: 62.5 | E65: 100 | F65: 37.5 | G65: 50 | H65: 66.66666667 | I65: 50 | J65: 66.66666667 | K65: 62.5 | L65: 50 | M65: 50 | N65: 75 | O65: 44.44444444 | P65: 75 | Q65: 52.38095238 | R65: 50 | S65: 75 | T65: 61
A66: Waitaki District Council | B66: 70.83333333 | C66: 60 | D66: 37.5 | E66: 62.5 | F66: 0 | G66: 25 | H66: 100 | I66: 100 | J66: 100 | K66: 87.5 | L66: 50 | M66: 50 | N66: 33.33333333 | O66: 22.22222222 | P66: 50 | Q66: 23.80952381 | R66: 100 | S66: 50 | T66: 54
A67: Waitomo District Council | B67: 83.33333333 | C67: 90 | D67: 50 | E67: 100 | F67: 100 | G67: 50 | H67: 66.66666667 | I67: 100 | J67: 66.66666667 | K67: 100 | L67: 50 | M67: 50 | N67: 33.33333333 | O67: 33.33333333 | P67: 25 | Q67: 33.33333333 | R67: 50 | S67: 75 | T67: 58
A68: Wellington City Council | B68: 66.66666667 | C68: 60 | D68: 16.66666667 | E68: 100 | F68: 50 | G68: 25 | H68: 66.66666667 | I68: 100 | J68: 33.33333333 | K68: 66.66666667 | L68: 50 | M68: 40 | N68: 41.66666667 | O68: 44.44444444 | P68: 25 | Q68: 38.0952381 | R68: 100 | S68: 50 | T68: 53
A69: Western Bay of Plenty District Council | B69: 58.33333333 | C69: 80 | D69: 75 | E69: 100 | F69: 25 | G69: 25 | H69: 100 | I69: 100 | J69: 100 | K69: 75 | L69: 50 | M69: 80 | N69: 91.66666667 | O69: 77.77777778 | P69: 25 | Q69: 90.47619048 | R69: 100 | S69: 100 | T69: 84
A70: Westland District Council | B70: 54.16666667 | C70: 30 | D70: 0 | E70: 75 | F70: 62.5 | G70: 0 | H70: 0 | I70: 100 | J70: 0 | K70: 25 | L70: 50 | M70: 60 | N70: 25 | O70: 0 | P70: 50 | Q70: 25 | R70: 100 | S70: 0 | T70: 46
A71: Whakatane District Council | B71: 91.66666667 | C71: 70 | D71: 50 | E71: 100 | F71: 75 | G71: 50 | H71: 66.66666667 | I71: 100 | J71: 33.33333333 | K71: 100 | L71: 50 | M71: 50 | N71: 75 | O71: 77.77777778 | P71: 25 | Q71: 76.19047619 | R71: 100 | S71: 50 | T71: 68
A72: Whanganui District Council | B72: 62.5 | C72: 70 | D72: 25 | E72: 87.5 | F72: 100 | G72: 0 | H72: 100 | I72: 100 | J72: 66.66666667 | K72: 25 | L72: 0 | M72: 30 | N72: 75 | O72: 11.11111111 | P72: 0 | Q72: 42.85714286 | R72: 0 | S72: 100 | T72: 56
A73: Whangarei District Council | B73: 54.16666667 | C73: 50 | D73: 50 | E73: 87.5 | F73: 25 | G73: 0 | H73: 100 | I73: 100 | J73: 0 | K73: 75 | L73: 50 | M73: 20 | N73: 58.33333333 | O73: 55.55555556 | P73: 50 | Q73: 47.61904762 | R73: 0 | S73: 50 | T73: 58

Sheet ONRC Category Results (hidden)
A1: REG DATA QUALITY RESULTS 2018/19 | PERCENTAGE AT THE EXPECTED STANDARD
B3: ONRC
B4: Data Category
B5: Network | C5: Asset Inventory | D5: Maintenance Acitivity | E5: Condition | F5: Demand/Use | G5: Crash
A6: Ashburton District Council | B6: 56.25 | C6: 75 | D6: 100 | E6: 100 | F6: 66.66666667 | G6: 50
A7: Auckland Transport | B7: 75 | C7: 25 | D7: 66.66666667 | E7: 50 | F7: 71.42857143 | G7: 0
A8: Buller District Council | B8: 50 | C8: 0 | D8: 0 | E8: 100 | F8: 57.14285714 | G8: 0
A9: Carterton District Council | B9: 68.75 | C9: 25 | D9: 100 | E9: 100 | F9: 50 | G9: 50
A10: Central Hawke's Bay District Council | B10: 62.5 | C10: 25 | D10: 66.66666667 | E10: 100 | F10: 76.19047619 | G10: 0
A11: Central Otago District Council | B11: 68.75 | C11: 0 | D11: 66.66666667 | E11: 100 | F11: 61.9047619 | G11: 50
A12: Chatham Islands Council | B12: 43.75 | C12: 25 | D12: 33.33333333 | E12: 100 | F12: 71.42857143 | G12: 0
A13: Christchurch City Council | B13: 50 | C13: 25 | D13: 66.66666667 | E13: 100 | F13: 57.14285714 | G13: 0
A14: Clutha District Council | B14: 68.75 | C14: 25 | D14: 66.66666667 | E14: 100 | F14: 85.71428571 | G14: 50
A15: DOC Roads | B15: 37.5 | C15: 0 | D15: 0 | E15: 100 | F15: 42.85714286 | G15: 50
A16: Dunedin City Council | B16: 75 | C16: 100 | D16: 100 | E16: 100 | F16: 85.71428571 | G16: 50
A17: Far North District Council | B17: 56.25 | C17: 50 | D17: 66.66666667 | E17: 100 | F17: 52.38095238 | G17: 50
A18: Gisborne District Council | B18: 50 | C18: 25 | D18: 100 | E18: 100 | F18: 33.33333333 | G18: 50
A19: Gore District Council | B19: 56.25 | C19: 25 | D19: 33.33333333 | E19: 50 | F19: 35.71428571 | G19: 50
A20: Grey District Council | B20: 50 | C20: 0 | D20: 0 | E20: 100 | F20: 0 | G20: 50
A21: Hamilton City Council | B21: 75 | C21: 75 | D21: 100 | E21: 50 | F21: 57.14285714 | G21: 0
A22: Hastings District Council | B22: 50 | C22: 50 | D22: 100 | E22: 50 | F22: 57.14285714 | G22: 50
A23: Hauraki District Council | B23: 100 | C23: 50 | D23: 100 | E23: 100 | F23: 61.9047619 | G23: 50
A24: Horowhenua District Council | B24: 56.25 | C24: 0 | D24: 66.66666667 | E24: 50 | F24: 61.9047619 | G24: 50
A25: Hurunui District Council | B25: 68.75 | C25: 0 | D25: 66.66666667 | E25: 100 | F25: 71.42857143 | G25: 50
A26: Hutt City Council | B26: 62.5 | C26: 25 | D26: 33.33333333 | E26: 100 | F26: 52.38095238 | G26: 0
A27: Invercargill City Council | B27: 87.5 | C27: 25 | D27: 66.66666667 | E27: 100 | F27: 52.38095238 | G27: 50
A28: Kaikoura District Council | B28: 37.5 | C28: 25 | D28: 0 | E28: 100 | F28: 57.14285714 | G28: 50
A29: Kaipara District Council | B29: 50 | C29: 0 | D29: 100 | E29: 100 | F29: 42.85714286 | G29: 50
A30: Kapiti Coast District Council | B30: 100 | C30: 50 | D30: 100 | E30: 100 | F30: 71.42857143 | G30: 50
A31: Kawerau District Council | B31: 87.5 | C31: 0 | D31: 0 | E31: 50 | F31: 50 | G31: 50
A32: MacKenzie District Council | B32: 56.25 | C32: 75 | D32: 66.66666667 | E32: 100 | F32: 42.85714286 | G32: 50
A33: Manawatu District Council | B33: 50 | C33: 0 | D33: 66.66666667 | E33: 50 | F33: 42.85714286 | G33: 50
A34: Marlborough District Council | B34: 68.75 | C34: 50 | D34: 66.66666667 | E34: 100 | F34: 66.66666667 | G34: 50
A35: Masterton District Council | B35: 62.5 | C35: 25 | D35: 66.66666667 | E35: 100 | F35: 42.85714286 | G35: 0
A36: Matamata-Piako District Council | B36: 81.25 | C36: 50 | D36: 100 | E36: 100 | F36: 100 | G36: 50
A37: Napier City Council | B37: 50 | C37: 75 | D37: 100 | E37: 100 | F37: 71.42857143 | G37: 0
A38: Nelson City Council | B38: 31.25 | C38: 0 | D38: 66.66666667 | E38: 100 | F38: 57.14285714 | G38: 0
A39: New Plymouth District Council | B39: 56.25 | C39: 25 | D39: 100 | E39: 100 | F39: 57.14285714 | G39: 50
A40: Opotiki District Council | B40: 93.75 | C40: 50 | D40: 66.66666667 | E40: 100 | F40: 42.85714286 | G40: 0
A41: Otorohanga District Council | B41: 87.5 | C41: 100 | D41: 66.66666667 | E41: 100 | F41: 78.57142857 | G41: 50
A42: Palmerston North City Council | B42: 50 | C42: 0 | D42: 33.33333333 | E42: 50 | F42: 28.57142857 | G42: 0
A43: Porirua City Council | B43: 62.5 | C43: 50 | D43: 100 | E43: 100 | F43: 71.42857143 | G43: 0
A44: Queenstown-Lakes District Council | B44: 25 | C44: 25 | D44: 100 | E44: 100 | F44: 42.85714286 | G44: 0
A45: Rangitikei District Council | B45: 87.5 | C45: 50 | D45: 100 | E45: 100 | F45: 28.57142857 | G45: 0
A46: Rotorua Lakes Council | B46: 75 | C46: 50 | D46: 66.66666667 | E46: 50 | F46: 28.57142857 | G46: 50
A47: Ruapehu District Council | B47: 62.5 | C47: 25 | D47: 66.66666667 | E47: 100 | F47: 57.14285714 | G47: 50
A48: Selwyn District Council | B48: 62.5 | C48: 25 | D48: 100 | E48: 100 | F48: 100 | G48: 50
A49: South Taranaki District Council | B49: 68.75 | C49: 75 | D49: 100 | E49: 100 | F49: 57.14285714 | G49: 50
A50: South Waikato District Council | B50: 75 | C50: 25 | D50: 33.33333333 | E50: 50 | F50: 85.71428571 | G50: 50
A51: South Wairarapa District Council | B51: 81.25 | C51: 25 | D51: 100 | E51: 100 | F51: 14.28571429 | G51: 50
A52: Southland District Council | B52: 62.5 | C52: 50 | D52: 66.66666667 | E52: 100 | F52: 71.42857143 | G52: 50
A53: Stratford District Council | B53: 37.5 | C53: 0 | D53: 0 | E53: 100 | F53: 28.57142857 | G53: 50
A54: Tararua District Council | B54: 81.25 | C54: 0 | D54: 0 | E54: 100 | F54: 42.85714286 | G54: 50
A55: Tasman District Council | B55: 81.25 | C55: 0 | D55: 66.66666667 | E55: 100 | F55: 71.42857143 | G55: 50
A56: Taupo District Council | B56: 56.25 | C56: 50 | D56: 66.66666667 | E56: 50 | F56: 42.85714286 | G56: 50
A57: Tauranga City Council | B57: 75 | C57: 25 | D57: 66.66666667 | E57: 100 | F57: 38.0952381 | G57: 0
A58: Thames-Coromandel District Council | B58: 81.25 | C58: 25 | D58: 0 | E58: 100 | F58: 35.71428571 | G58: 50
A59: Timaru District Council | B59: 81.25 | C59: 75 | D59: 100 | E59: 100 | F59: 100 | G59: 50
A60: Upper Hutt City Council | B60: 81.25 | C60: 25 | D60: 66.66666667 | E60: 100 | F60: 42.85714286 | G60: 50
A61: Waikato District Council | B61: 62.5 | C61: 50 | D61: 66.66666667 | E61: 100 | F61: 42.85714286 | G61: 50
A62: Waimakariri District Council | B62: 37.5 | C62: 25 | D62: 100 | E62: 100 | F62: 80.95238095 | G62: 50
A63: Waimate District Council | B63: 81.25 | C63: 50 | D63: 66.66666667 | E63: 100 | F63: 71.42857143 | G63: 50
A64: Waipa District Council | B64: 68.75 | C64: 50 | D64: 100 | E64: 100 | F64: 80.95238095 | G64: 50
A65: Wairoa District Council | B65: 68.75 | C65: 50 | D65: 66.66666667 | E65: 50 | F65: 64.28571429 | G65: 50
A66: Waitaki District Council | B66: 31.25 | C66: 25 | D66: 100 | E66: 100 | F66: 92.85714286 | G66: 50
A67: Waitomo District Council | B67: 100 | C67: 50 | D67: 66.66666667 | E67: 100 | F67: 85.71428571 | G67: 50
A68: Wellington City Council | B68: 75 | C68: 25 | D68: 66.66666667 | E68: 100 | F68: 52.38095238 | G68: 50
A69: Western Bay of Plenty District Council | B69: 62.5 | C69: 25 | D69: 100 | E69: 100 | F69: 85.71428571 | G69: 50
A70: Westland District Council | B70: 68.75 | C70: 0 | D70: 0 | E70: 100 | F70: 14.28571429 | G70: 50
A71: Whakatane District Council | B71: 87.5 | C71: 50 | D71: 66.66666667 | E71: 100 | F71: 71.42857143 | G71: 50
A72: Whanganui District Council | B72: 93.75 | C72: 0 | D72: 100 | E72: 100 | F72: 42.85714286 | G72: 0
A73: Whangarei District Council | B73: 56.25 | C73: 0 | D73: 100 | E73: 100 | F73: 42.85714286 | G73: 50

Sheet Region & Peer Group Results (hidden)
A1: REG DATA QUALITY RESULTS 2017/18 | PERCENTAGE AT THE EXPECTED STANDARD (REGIONS)
B3: ONRC | M3: Asset Management | V3: ONRC
B4: Quality Dimension | E4: Data Sub-Category | M4: Quality Dimension | P4: Data Category | T4: Score | V4: Data Category
A5: Region | B5: Accuracy | C5: Completeness | D5: Timeliness | E5: Carriageway | F5: Treatment Length | G5: Surfacing | H5: Maintenance Activity | I5: Roughness | J5: Traffic Count | K5: Traffic Estimates | L5: Crash | M5: Accuracy | N5: Completeness | O5: Timeliness | P5: Network | Q5: Asset Inventory | R5: Condition | S5: Maintenance Activity | T5: AM Score | V5: Network | W5: Asset Inventory | X5: Maintenance Acitivity | Y5: Condition | Z5: Demand/Use | AA5: Crash
A6: Bay of Plenty | B6: 68.75 | C6: 58.33333333 | D6: 38.19444444 | E6: 95.83333333 | F6: 64.58333333 | G6: 33.33333333 | H6: 61.11111111 | I6: 83.33333333 | J6: 38.88888889 | K6: 63.19444444 | L6: 33.33333333 | M6: 50 | N6: 59.72222222 | O6: 51.85185185 | P6: 41.66666667 | Q6: 54.76190476 | R6: 75 | S6: 54.16666667 | V6: 80.20833333 | W6: 33.33333333 | X6: 61.11111111 | Y6: 83.33333333 | Z6: 52.77777778 | AA6: 33.33333333
A7: Canterbury | B7: 71.2962963 | C7: 66.66666667 | D7: 34.25925926 | E7: 81.94444444 | F7: 37.5 | G7: 41.66666667 | H7: 74.07407407 | I7: 100 | J7: 59.25925926 | K7: 81.48148148 | L7: 44.44444444 | M7: 44.44444444 | N7: 46.2962963 | O7: 48.73417722 | P7: 52.77777778 | Q7: 43.04812834 | R7: 66.66666667 | S7: 47.22222222 | V7: 59.72222222 | W7: 41.66666667 | X7: 74.07407407 | Y7: 100 | Z7: 71.95767196 | AA7: 44.44444444
A8: Gisborne and Hawkes Bay | B8: 63.33333333 | C8: 62 | D8: 35.83333333 | E8: 95 | F8: 15 | G8: 45 | H8: 86.66666667 | I8: 80 | J8: 60 | K8: 60.83333333 | L8: 30 | M8: 44.89795918 | N8: 55 | O8: 50 | P8: 42.10526316 | Q8: 47.14285714 | R8: 60 | S8: 70 | V8: 55 | W8: 45 | X8: 86.66666667 | Y8: 80 | Z8: 60.47619048 | AA8: 30
A9: No Region | B9: 35.41666667 | C9: 50 | D9: 37.5 | E9: 62.5 | F9: 18.75 | G9: 12.5 | H9: 16.66666667 | I9: 100 | J9: 33.33333333 | K9: 75 | L9: 25 | M9: 25 | N9: 16.66666667 | O9: 60 | P9: 37.5 | Q9: 35.8974359 | R9: 0 | S9: 12.5 | V9: 40.625 | W9: 12.5 | X9: 16.66666667 | Y9: 100 | Z9: 57.14285714 | AA9: 25
A10: North Auckland | B10: 66.31578947 | C10: 45 | D10: 41.66666667 | E10: 81.25 | F10: 35.48387097 | G10: 18.75 | H10: 83.33333333 | I10: 87.5 | J10: 33.33333333 | K10: 66.66666667 | L10: 37.5 | M10: 30 | N10: 54.16666667 | O10: 66.66666667 | P10: 43.75 | Q10: 53.57142857 | R10: 12.5 | S10: 56.25 | V10: 58.73015873 | W10: 18.75 | X10: 83.33333333 | Y10: 87.5 | Z10: 52.38095238 | AA10: 37.5
A11: Southland and Otago | B11: 69.27083333 | C11: 61.25 | D11: 31.25 | E11: 82.8125 | F11: 34.375 | G11: 34.375 | H11: 75 | I11: 93.75 | J11: 58.33333333 | K11: 71.875 | L11: 43.75 | M11: 40.50632911 | N11: 59.375 | O11: 37.68115942 | P11: 64.51612903 | Q11: 38.78787879 | R11: 68.75 | S11: 62.5 | V11: 58.59375 | W11: 34.375 | X11: 75 | Y11: 93.75 | Z11: 66.07142857 | AA11: 43.75
A12: Taranaki, Manawatu and Whanganui | B12: 55.41666667 | C12: 55 | D12: 20.83333333 | E12: 72.5 | F12: 48.75 | G12: 17.5 | H12: 63.33333333 | I12: 85 | J12: 50 | K12: 40.83333333 | L12: 35 | M12: 35 | N12: 43.33333333 | O12: 27.77777778 | P12: 37.5 | Q12: 33.80952381 | R12: 40 | S12: 45 | V12: 60.625 | W12: 17.5 | X12: 63.33333333 | Y12: 85 | Z12: 44.76190476 | AA12: 35
A13: Top of South Island and West Coast | B13: 50.69444444 | C13: 46.66666667 | D13: 23.61111111 | E13: 75 | F13: 39.58333333 | G13: 8.333333333 | H13: 33.33333333 | I13: 100 | J13: 38.88888889 | K13: 48.61111111 | L13: 33.33333333 | M13: 33.89830508 | N13: 33.33333333 | O13: 25 | P13: 26.08695652 | Q13: 28.22580645 | R13: 75 | S13: 29.16666667 | V13: 57.29166667 | W13: 8.333333333 | X13: 33.33333333 | Y13: 100 | Z13: 44.44444444 | AA13: 33.33333333
A14: Waikato | B14: 69.58333333 | C14: 73 | D14: 50 | E14: 86.25 | F14: 67.5 | G14: 52.5 | H14: 70 | I14: 85 | J14: 66.66666667 | K14: 67.5 | L14: 45 | M14: 45.45454545 | N14: 59.16666667 | O14: 54.44444444 | P14: 35.8974359 | Q14: 54.76190476 | R14: 55 | S14: 62.5 | V14: 76.875 | W14: 52.5 | X14: 70 | Y14: 85 | Z14: 67.14285714 | AA14: 45
A15: Wellington | B15: 72.39583333 | C15: 60 | D15: 24.47916667 | E15: 96.875 | F15: 51.5625 | G15: 31.25 | H15: 79.16666667 | I15: 100 | J15: 41.66666667 | K15: 55.72916667 | L15: 31.25 | M15: 40.25974026 | N15: 44.79166667 | O15: 47.88732394 | P15: 44.82758621 | Q15: 40.11976048 | R15: 81.25 | S15: 46.875 | V15: 74.21875 | W15: 31.25 | X15: 79.16666667 | Y15: 100 | Z15: 49.70238095 | AA15: 31.25
A18: REG DATA QUALITY RESULTS 2017/18 | PERCENTAGE AT THE EXPECTED STANDARD (PEER GROUPS)
B20: ONRC | M20: Asset Management | V20: ONRC
B21: Quality Dimension | E21: Data Sub-Category | M21: Quality Dimension | P21: Data Category | T21: Score | V21: Data Category
A22: Region | B22: Accuracy | C22: Completeness | D22: Timeliness | E22: Carriageway | F22: Treatment Length | G22: Surfacing | H22: Maintenance Activity | I22: Roughness | J22: Traffic Count | K22: Traffic Estimates | L22: Crash | M22: Accuracy | N22: Completeness | O22: Timeliness | P22: Network | Q22: Asset Inventory | R22: Condition | S22: Maintenance Activity | T22: AM Score | V22: Network | W22: Asset Inventory | X22: Maintenance Acitivity | Y22: Condition | Z22: Demand/Use | AA22: Crash
A23: Provincial Centres | B23: 64.04320988 | C23: 61.85185185 | D23: 34.72222222 | E23: 82.87037037 | F23: 49.07407407 | G23: 31.48148148 | H23: 69.13580247 | I23: 90.74074074 | J23: 58.02469136 | K23: 56.94444444 | L23: 40.74074074 | M23: 41.94756554 | N23: 51.85185185 | O23: 43.90756303 | P23: 39.04761905 | Q23: 45.46263345 | R23: 59.25925926 | S23: 51.85185185 | V23: 65.97222222 | W23: 31.48148148 | X23: 69.13580247 | Y23: 90.74074074 | Z23: 57.40740741 | AA23: 40.74074074
A24: Highly Urban | B24: 68.33333333 | C24: 52 | D24: 17.5 | E24: 100 | F24: 45 | G24: 30 | H24: 53.33333333 | I24: 80 | J24: 6.666666667 | K24: 82.5 | L24: 20 | M24: 36.73469388 | N24: 45 | O24: 45.55555556 | P24: 31.57894737 | Q24: 42.38095238 | R24: 50 | S24: 50 | V24: 72.5 | W24: 30 | X24: 53.33333333 | Y24: 80 | Z24: 50 | AA24: 20
A25: Rural Districts | B25: 65.65008026 | C25: 62.30769231 | D25: 35.09615385 | E25: 83.65384615 | F25: 44.92753623 | G25: 34.61538462 | H25: 69.23076923 | I25: 94.23076923 | J25: 53.84615385 | K25: 62.98076923 | L25: 44.23076923 | M25: 42.80155642 | N25: 47.75641026 | O25: 43.07359307 | P25: 54.45544554 | Q25: 40.23941068 | R25: 57.69230769 | S25: 52.88461538 | V25: 64.3373494 | W25: 34.61538462 | X25: 69.23076923 | Y25: 94.23076923 | Z25: 59.06593407 | AA25: 44.23076923
A26: Cities | B26: 65.74074074 | C26: 52.22222222 | D26: 32.40740741 | E26: 84.72222222 | F26: 34.72222222 | G26: 30.55555556 | H26: 74.07407407 | I26: 88.88888889 | J26: 51.85185185 | K26: 62.96296296 | L26: 16.66666667 | M26: 33.33333333 | N26: 54.62962963 | O26: 50.625 | P26: 33.33333333 | Q26: 46.0106383 | R26: 72.22222222 | S26: 50 | V26: 59.72222222 | W26: 30.55555556 | X26: 74.07407407 | Y26: 88.88888889 | Z26: 58.2010582 | AA26: 16.66666667
A27: No Group | B27: 25 | C27: 50 | D27: 25 | E27: 37.5 | F27: 37.5 | G27: 0 | H27: 0 | I27: 100 | J27: 0 | K27: 75 | L27: 50 | M27: 20 | N27: 0 | O27: 57.14285714 | P27: 25 | Q27: 26.31578947 | R27: 0 | S27: 0 | V27: 37.5 | W27: 0 | X27: 0 | Y27: 100 | Z27: 42.85714286 | AA27: 50
A30: REG DATA QUALITY RESULTS 2017/18 | PERCENTAGE AT THE EXPECTED STANDARD (NATIONAL)
B32: ONRC | M32: Asset Management | V32: ONRC
B33: Quality Dimension | E33: Data Sub-Category | M33: Quality Dimension | P33: Data Category | T33: Score | V33: Data Category
A34: Region | B34: Accuracy | C34: Completeness | D34: Timeliness | E34: Carriageway | F34: Treatment Length | G34: Surfacing | H34: Maintenance Activity | I34: Roughness | J34: Traffic Count | K34: Traffic Estimates | L34: Crash | M34: Accuracy | N34: Completeness | O34: Timeliness | P34: Network | Q34: Asset Inventory | R34: Condition | S34: Maintenance Activity | T34: AM Score | V34: Network | W34: Asset Inventory | X34: Maintenance Acitivity | Y34: Condition | Z34: Demand/Use | AA34: Crash
A35: National | B35: 65.31862745 | C35: 59.85294118 | D35: 33.1495098 | E35: 86.21323529 | F35: 45.03676471 | G35: 31.98529412 | H35: 67.64705882 | I35: 91.17647059 | J35: 50.98039216 | K35: 62.19362745 | L35: 37.5 | M35: 40.41604755 | N35: 49.3872549 | O35: 44.75873544 | P35: 43.39622642 | Q35: 43.04869442 | R35: 58.82352941 | S35: 51.10294118 | V35: 65.625 | W35: 31.98529412 | X35: 67.64705882 | Y35: 91.17647059 | Z35: 57.38795518 | AA35: 37.5

Sheet Lookups (hidden)
H1: RCA_ID | I1: RCA_Name | J1: old_RCA_Name | K1: Peer Group | L1: Region
A2: Financial Years | H2: 57 | I2: Ashburton District Council | J2: Ashburton District | K2: Rural Districts | L2: Canterbury
A3: 2018/19 | H3: 80 | I3: Auckland Transport | J3: Auckland | K3: Cities | L3: North Auckland
A4: 2017/18 | H4: 58 | I4: Buller District Council | J4: Buller District | K4: Provincial Centres | L4: Top of South Island and West Coast
A5: 2016/17 | H5: 23 | I5: Carterton District Council | J5: Carterton District | K5: Rural Districts | L5: Wellington
A6: 2015/16 | H6: 38 | I6: Central Hawke's Bay District Council | J6: Central Hawkes Bay District | K6: Rural Districts | L6: Gisborne and Hawkes Bay
A7: 2014/15 | H7: 59 | I7: Central Otago District Council | J7: Central Otago District | K7: Rural Districts | L7: Southland and Otago
H8: 86 | I8: Chatham Islands Council | J8: Chatham Island | K8: Rural Districts | L8: No Region
A9: Comparison | H9: 76 | I9: Christchurch City Council | J9: Christchurch City | K9: Cities | L9: Canterbury
A10: National | H10: 60 | I10: Clutha District Council | J10: Clutha District | K10: Rural Districts | L10: Southland and Otago
A11: Regional | H11: 88 | I11: DOC Roads | J11: DOC Roads | K11: No Group | L11: No Region
A12: Peer Group | H12: 61 | I12: Dunedin City Council | J12: Dunedin City | K12: Provincial Centres | L12: Southland and Otago
H13: 79 | I13: Far North District Council | J13: Far North District | K13: Rural Districts | L13: North Auckland
A14: Shade | B14: Threshold (>) | H14: 39 | I14: Gisborne District Council | J14: Gisborne District | K14: Provincial Centres | L14: Gisborne and Hawkes Bay
B15: 80 | H15: 62 | I15: Gore District Council | J15: Gore District | K15: Rural Districts | L15: Southland and Otago
B16: 70 | H16: 63 | I16: Grey District Council | J16: Grey District | K16: Provincial Centres | L16: Top of South Island and West Coast
B17: 50 | H17: 11 | I17: Hamilton City Council | J17: Hamilton City | K17: Highly Urban | L17: Waikato
H18: 40 | I18: Hastings District Council | J18: Hastings District | K18: Provincial Centres | L18: Gisborne and Hawkes Bay
H19: 9 | I19: Hauraki District Council | J19: Hauraki District | K19: Provincial Centres | L19: Waikato
H20: 41 | I20: Horowhenua District Council | J20: Horowhenua District | K20: Provincial Centres | L20: Taranaki, Manawatu and Whanganui
H21: 64 | I21: Hurunui District Council | J21: Hurunui District | K21: Rural Districts | L21: Canterbury
H22: 24 | I22: Hutt City Council | J22: Hutt City | K22: Highly Urban | L22: Wellington
H23: 65 | I23: Invercargill City Council | J23: Invercargill City | K23: Cities | L23: Southland and Otago
H24: 66 | I24: Kaikoura District Council | J24: Kaikoura District | K24: Provincial Centres | L24: Canterbury
H25: 78 | I25: Kaipara District Council | J25: Kaipara District | K25: Rural Districts | L25: North Auckland
H26: 25 | I26: Kapiti Coast District Council | J26: Kapiti Coast District | K26: Cities | L26: Wellington
H27: 21 | I27: Kawerau District Council | J27: Kawerau District | K27: Highly Urban | L27: Bay of Plenty
H28: 67 | I28: MacKenzie District Council | J28: MacKenzie District | K28: Rural Districts | L28: Canterbury
H29: 42 | I29: Manawatu District Council | J29: Manawatu District | K29: Rural Districts | L29: Taranaki, Manawatu and Whanganui
H30: 26 | I30: Marlborough District Council | J30: Marlborough District | K30: Provincial Centres | L30: Top of South Island and West Coast
H31: 87 | I31: Masterton District Council | J31: Masterton District | K31: Provincial Centres | L31: Wellington
H32: 8 | I32: Matamata-Piako District Council | J32: Matamata-Piako District | K32: Provincial Centres | L32: Waikato
H33: 43 | I33: Napier City Council | J33: Napier City | K33: Cities | L33: Gisborne and Hawkes Bay
H34: 30 | I34: Nelson City Council | J34: Nelson City | K34: Cities | L34: Top of South Island and West Coast
H35: 44 | I35: New Plymouth District Council | J35: New Plymouth District | K35: Provincial Centres | L35: Taranaki, Manawatu and Whanganui
H36: 12 | I36: Opotiki District Council | J36: Opotiki District | K36: Provincial Centres | L36: Bay of Plenty
H37: 17 | I37: Otorohanga District Council | J37: Otorohanga District | K37: Rural Districts | L37: Waikato
H38: 45 | I38: Palmerston North City Council | J38: Palmerston North City | K38: Cities | L38: Taranaki, Manawatu and Whanganui
H39: 31 | I39: Porirua City Council | J39: Porirua City | K39: Cities | L39: Wellington
H40: 68 | I40: Queenstown-Lakes District Council | J40: Queenstown-Lakes District | K40: Provincial Centres | L40: Southland and Otago
H41: 46 | I41: Rangitikei District Council | J41: Rangitikei District | K41: Rural Districts | L41: Taranaki, Manawatu and Whanganui
H42: 20 | I42: Rotorua Lakes Council | J42: Rotorua Lakes | K42: Provincial Centres | L42: Bay of Plenty
H43: 47 | I43: Ruapehu District Council | J43: Ruapehu District | K43: Rural Districts | L43: Taranaki, Manawatu and Whanganui
H44: 75 | I44: Selwyn District Council | J44: Selwyn District | K44: Rural Districts | L44: Canterbury
H45: 48 | I45: South Taranaki District Council | J45: South Taranaki District | K45: Rural Districts | L45: Taranaki, Manawatu and Whanganui
H46: 10 | I46: South Waikato District Council | J46: South Waikato District | K46: Provincial Centres | L46: Waikato
H47: 32 | I47: South Wairarapa District Council | J47: South Wairarapa District | K47: Rural Districts | L47: Wellington
H48: 69 | I48: Southland District Council | J48: Southland District | K48: Rural Districts | L48: Southland and Otago
H49: 49 | I49: Stratford District Council | J49: Stratford District | K49: Rural Districts | L49: Taranaki, Manawatu and Whanganui
H50: 54 | I50: Tararua District Council | J50: Tararua District | K50: Rural Districts | L50: Taranaki, Manawatu and Whanganui
H51: 33 | I51: Tasman District Council | J51: Tasman District | K51: Provincial Centres | L51: Top of South Island and West Coast
H52: 7 | I52: Taupo District Council | J52: Taupo District | K52: Provincial Centres | L52: Waikato
H53: 15 | I53: Tauranga City Council | J53: Tauranga City | K53: Highly Urban | L53: Bay of Plenty
H54: 18 | I54: Thames-Coromandel District Council | J54: Thames-Coromandel District | K54: Provincial Centres | L54: Waikato
H55: 70 | I55: Timaru District Council | J55: Timaru District | K55: Provincial Centres | L55: Canterbury
H56: 34 | I56: Upper Hutt City Council | J56: Upper Hutt City | K56: Cities | L56: Wellington
H57: 22 | I57: Waikato District Council | J57: Waikato District | K57: Rural Districts | L57: Waikato
H58: 74 | I58: Waimakariri District Council | J58: Waimakariri District | K58: Provincial Centres | L58: Canterbury
H59: 71 | I59: Waimate District Council | J59: Waimate District | K59: Rural Districts | L59: Canterbury
H60: 5 | I60: Waipa District Council | J60: Waipa District | K60: Provincial Centres | L60: Waikato
H61: 55 | I61: Wairoa District Council | J61: Wairoa District | K61: Rural Districts | L61: Gisborne and Hawkes Bay
H62: 72 | I62: Waitaki District Council | J62: Waitaki District | K62: Rural Districts | L62: Southland and Otago
H63: 14 | I63: Waitomo District Council | J63: Waitomo District | K63: Rural Districts | L63: Waikato
H64: 37 | I64: Wellington City Council | J64: Wellington City | K64: Highly Urban | L64: Wellington
H65: 13 | I65: Western Bay of Plenty District Council | J65: Western Bay of Plenty District | K65: Provincial Centres | L65: Bay of Plenty
H66: 73 | I66: Westland District Council | J66: Westland District | K66: Provincial Centres | L66: Top of South Island and West Coast
H67: 16 | I67: Whakatane District Council | J67: Whakatane District | K67: Provincial Centres | L67: Bay of Plenty
H68: 56 | I68: Whanganui District Council | J68: Whanganui District | K68: Provincial Centres | L68: Taranaki, Manawatu and Whanganui
H69: 77 | I69: Whangarei District Council | J69: Whangarei District | K69: Provincial Centres | L69: North Auckland
H70: 81 | I70: NZTA | K70: No Group | L70: No Region

Sheet Charts
A1: DATA QUALITY RESULTS 2017/18 | PERCENTAGE AT THE EXPECTED STANDARD
A3: My RCA: | B3: Ashburton District Council | C3: Select RCA from drop down list
A4: Comparison | B4: Peer Group
A5: =B4&":" -> Peer Group: | B5: =IF($B$4=Lookups!$A$10,'Chart Data'!$D$3,IF(Charts!$B$4=Lookups!$A$11,'Chart Data'!$E$3,IF(Charts!$B$4=Lookups!$A$12,'Chart Data'!$F$3,""))) -> Rural Districts

Sheet Chart Data (hidden)
B1: Financial Year | C1: 2018/19
B2: Reported Grade | C2: 1 | R2: RCA | T2: Comparison | V2: 10%ile | X2: 25%ile | Z2: 50%ile | AB2: 75%ile | AD2: 90%ile
B3: Individual RCA | C3: =Charts!$B$3 -> Ashburton District Council | D3: National | E3: =VLOOKUP($C$3,Table22[[#All],[RCA_Name]:[Region]],4,FALSE) -> Canterbury | F3: =VLOOKUP($C$3,Table22[[#All],[RCA_Name]:[Region]],3,FALSE) -> Rural Districts | G3: 10 | H3: 25 | I3: 50 | J3: 75 | K3: 90 | L3: Sector Weight | M3: % of 360 | N3: Start Angle | O3: Finish Angle | P3: Chart Label | Q3: Theta | S3: Values | W3: Values | Y3: Values | AA3: Values | AC3: Values | AE3: Values | AI3: 0 | AJ3: 0.1 | AK3: 0.2 | AL3: 0.3 | AM3: 0.4 | AN3: 0.5 | AO3: 0.6 | AP3: 0.7 | AQ3: 0.8 | AR3: 0.9 | AS3: 1
A4: ONRC | B4: Accuracy | C4: =VLOOKUP($C$3,'RCA Results Table'!$A$5:$T$73,2,FALSE)/100 -> 0.875 | D4: =VLOOKUP($D$3,'Region & Peer Group Results'!$A$34:$AA$35,2,FALSE)/100 -> 0.6531862745 | E4: =VLOOKUP($E$3,'Region & Peer Group Results'!$A$5:$AA$15,2,FALSE)/100 -> 0.712962963 | F4: =VLOOKUP($F$3,'Region & Peer Group Results'!$A$22:$AA$27,2,FALSE)/100 -> 0.6565008026 | G4: 0.5133333333 | H4: 0.6 | I4: 0.6666666667 | J4: 0.7333333333 | K4: 0.8666666667 | L4: 2 | M4: =L4/SUM($L$4:$L$19) -> 0.08333333333 | N4: 0 | O4: =360*SUM($M$3:M4) -> 30 | P4: Accuracy | Q4: =(O4-N4)/2+N4 -> 15 | R4: =C4*SIN(Q4/180*PI()) -> 0.2264666645 | S4: =C4*COS(Q4/180*PI()) -> 0.845185098 | T4: =IF(Charts!$B$5='Chart Data'!$D$3,D4*SIN(Q4/180*PI()),IF(Charts!$B$5='Chart Data'!$E$3,E4*SIN(Q4/180*PI()),IF(Charts!$B$5='Chart Data'!$F$3,F4*SIN(Q4/180*PI()),""))) -> 0.1699149108 | U4: =IF(Charts!$B$5='Chart Data'!$D$3,D4*COS(Q4/180*PI()),IF(Charts!$B$5='Chart Data'!$E$3,E4*COS(Q4/180*PI()),IF(Charts!$B$5='Chart Data'!$F$3,F4*COS(Q4/180*PI()),""))) -> 0.6341310802 | V4: =$G4*SIN($Q4/180*PI()) -> 0.1328604432 | W4: =$G4*COS($Q4/180*PI()) -> 0.4958419242 | X4: =$H4*SIN($Q4/180*PI()) -> 0.1552914271 | Y4: =$H4*COS($Q4/180*PI()) -> 0.5795554958 | Z4: =$I4*SIN($Q4/180*PI()) -> 0.1725460301 | AA4: =$I4*COS($Q4/180*PI()) -> 0.6439505509 | AB4: =$J4*SIN($Q4/180*PI()) -> 0.1898006331 | AC4: =$J4*COS($Q4/180*PI()) -> 0.7083456059 | AD4: =$K4*SIN($Q4/180*PI()) -> 0.2243098391 | AE4: =$K4*COS($Q4/180*PI()) -> 0.8371357161 | AH4: 32.72727273 | AI4: =$L4 -> 2 | AJ4: =$L4 -> 2 | AK4: 2 | AL4: 2 | AM4: 2 | AN4: 2 | AO4: 2 | AP4: 2 | AQ4: 2 | AR4: 2 | AS4: 2
A5: ONRC | B5: Completeness | C5: =VLOOKUP($C$3,'RCA Results Table'!$A$5:$T$73,3,FALSE)/100 -> 0.7 | D5: =VLOOKUP($D$3,'Region & Peer Group Results'!$A$34:$AA$35,3,FALSE)/100 -> 0.5985294118 | E5: =VLOOKUP($E$3,'Region & Peer Group Results'!$A$5:$AA$15,3,FALSE)/100 -> 0.6666666667 | F5: =VLOOKUP($F$3,'Region & Peer Group Results'!$A$22:$AA$27,3,FALSE)/100 -> 0.6230769231 | G5: 0.4 | H5: 0.5 | I5: 0.6 | J5: 0.7 | K5: 0.8 | L5: 2 | M5: =L5/SUM($L$4:$L$19) -> 0.08333333333 | N5: =O4 -> 30 | O5: =360*SUM($M$3:M5) -> 60 | P5: Completeness | Q5: =(O5-N5)/2+N5 -> 45 | R5: 0.4949747468 | S5: 0.4949747468 | T5: =IF(Charts!$B$5='Chart Data'!$D$3,D5*SIN(Q5/180*PI()),IF(Charts!$B$5='Chart Data'!$E$3,E5*SIN(Q5/180*PI()),IF(Charts!$B$5='Chart Data'!$F$3,F5*SIN(Q5/180*PI()),""))) -> 0.4405819175 | U5: =IF(Charts!$B$5='Chart Data'!$D$3,D5*COS(Q5/180*PI()),IF(Charts!$B$5='Chart Data'!$E$3,E5*COS(Q5/180*PI()),IF(Charts!$B$5='Chart Data'!$F$3,F5*COS(Q5/180*PI()),""))) -> 0.4405819175 | V5: =$G5*SIN($Q5/180*PI()) -> 0.2828427125 | W5: =$G5*COS($Q5/180*PI()) -> 0.2828427125 | X5: =$H5*SIN($Q5/180*PI()) -> 0.3535533906 | Y5: =$H5*COS($Q5/180*PI()) -> 0.3535533906 | Z5: =$I5*SIN($Q5/180*PI()) -> 0.4242640687 | AA5: =$I5*COS($Q5/180*PI()) -> 0.4242640687 | AB5: =$J5*SIN($Q5/180*PI()) -> 0.4949747468 | AC5: =$J5*COS($Q5/180*PI()) -> 0.4949747468 | AD5: =$K5*SIN($Q5/180*PI()) -> 0.5656854249 | AE5: =$K5*COS($Q5/180*PI()) -> 0.5656854249 | AH5: 65.45454545 | AI5: =$L5 -> 2 | AJ5: 2 | AK5: 2 | AL5: 2 | AM5: 2 | AN5: 2 | AO5: 2 | AP5: 2 | AQ5: 2 | AR5: 2 | AS5: 2
A6: ONRC | B6: Timeliness | C6: =VLOOKUP($C$3,'RCA Results Table'!$A$5:$T$73,4,FALSE)/100 -> 0.1666666667 | D6: =VLOOKUP($D$3,'Region & Peer Group Results'!$A$34:$AA$35,4,FALSE)/100 -> 0.331495098 | E6: =VLOOKUP($E$3,'Region & Peer Group Results'!$A$5:$AA$15,4,FALSE)/100 -> 0.3425925926 | F6: =VLOOKUP($F$3,'Region & Peer Group Results'!$A$22:$AA$27,4,FALSE)/100 -> 0.3509615385 | G6: 0.1666666667 | H6: 0.1666666667 | I6: 0.3333333333 | J6: 0.5 | K6: 0.6666666667 | L6: 2 | M6: 0.08333333333 | N6: =O5 -> 60 | O6: =360*SUM($M$3:M6) -> 90 | P6: Timeliness | Q6: 75 | R6: 0.1609876377 | S6: 0.04313650752 | T6: =IF(Charts!$B$5='Chart Data'!$D$3,D6*SIN(Q6/180*PI()),IF(Charts!$B$5='Chart Data'!$E$3,E6*SIN(Q6/180*PI()),IF(Charts!$B$5='Chart Data'!$F$3,F6*SIN(Q6/180*PI()),""))) -> 0.339002814 | U6: =IF(Charts!$B$5='Chart Data'!$D$3,D6*COS(Q6/180*PI()),IF(Charts!$B$5='Chart Data'!$E$3,E6*COS(Q6/180*PI()),IF(Charts!$B$5='Chart Data'!$F$3,F6*COS(Q6/180*PI()),""))) -> 0.09083553025 | V6: 0.1609876377 | W6: 0.04313650752 | X6: 0.1609876377 | Y6: 0.04313650752 | Z6: 0.3219752754 | AA6: 0.08627301503 | AB6: 0.4829629131 | AC6: 0.1294095226 | AD6: 0.6439505509 | AE6: 0.1725460301 | AH6: 98.18181818 | AI6: 2 | AJ6: 2 | AK6: 2 | AL6: 2 | AM6: 2 | AN6: 2 | AO6: 2 | AP6: 2 | AQ6: 2 | AR6: 2 | AS6: 2
A7: ONRC | B7: Network | C7: =VLOOKUP($C$3,'ONRC Category Results'!$A:$G,2,FALSE)/100 -> 0.5625 | D7: =VLOOKUP($D$3,'Region & Peer Group Results'!$A$34:$AA$35,22,FALSE)/100 -> 0.65625 | E7: =VLOOKUP($E$3,'Region & Peer Group Results'!$A$5:$AA$15,22,FALSE)/100 -> 0.5972222222 | F7: =VLOOKUP($F$3,'Region & Peer Group Results'!$A$22:$AA$27,22,FALSE)/100 -> 0.643373494 | G7: 0.4545454545 | H7: 0.5454545455 | I7: 0.6363636364 | J7: 0.8181818182 | K7: 0.8181818182 | L7: 1 | M7: 0.04166666667 | N7: 90 | O7: =360*SUM($M$3:M7) -> 105 | P7: Network | Q7: 97.5 | R7: 0.5576877345 | S7: -0.07342098312 | T7: =IF(Charts!$B$5='Chart Data'!$D$3,D7*SIN(Q7/180*PI()),IF(Charts!$B$5='Chart Data'!$E$3,E7*SIN(Q7/180*PI()),IF(Charts!$B$5='Chart Data'!$F$3,F7*SIN(Q7/180*PI()),""))) -> 0.6378693445 | U7: =IF(Charts!$B$5='Chart Data'!$D$3,D7*COS(Q7/180*PI()),IF(Charts!$B$5='Chart Data'!$E$3,E7*COS(Q7/180*PI()),IF(Charts!$B$5='Chart Data'!$F$3,F7*COS(Q7/180*PI()),""))) -> -0.08397709234 | V7: 0.4506567552 | W7: -0.05933008737 | X7: 0.5407881062 | Y7: -0.07119610485 | Z7: 0.6309194572 | AA7: -0.08306212232 | AB7: 0.8111821593 | AC7: -0.1067941573 | AD7: 0.8111821593 | AE7: -0.1067941573 | AH7: 114.5454545 | AI7: 1 | AJ7: 1 | AK7: 1 | AL7: 1 | AM7: 1 | AN7: 1 | AO7: 1 | AP7: 1 | AQ7: 1 | AR7: 1 | AS7: 1
A8: ONRC | B8: Asset Inventory | C8: =VLOOKUP($C$3,'ONRC Category Results'!$A:$G,3,FALSE)/100 -> 0.75 | D8: =VLOOKUP($D$3,'Region & Peer Group Results'!$A$34:$AA$35,23,FALSE)/100 -> 0.3198529412 | E8: =VLOOKUP($E$3,'Region & Peer Group Results'!$A$5:$AA$15,23,FALSE)/100 -> 0.4166666667 | F8: =VLOOKUP($F$3,'Region & Peer Group Results'!$A$22:$AA$27,23,FALSE)/100 -> 0.3461538462 | G8: 0 | H8: 0.25 | I8: 0.25 | J8: 0.5 | K8: 0.75 | L8: 1 | M8: 0.04166666667 | N8: 105 | O8: =360*SUM($M$3:M8) -> 120 | P8: Asset Inventory | Q8: 112.5 | R8: 0.6929096494 | S8: -0.2870125743 | T8: =IF(Charts!$B$5='Chart Data'!$D$3,D8*SIN(Q8/180*PI()),IF(Charts!$B$5='Chart Data'!$E$3,E8*SIN(Q8/180*PI()),IF(Charts!$B$5='Chart Data'!$F$3,F8*SIN(Q8/180*PI()),""))) -> 0.3198044536 | U8: =IF(Charts!$B$5='Chart Data'!$D$3,D8*COS(Q8/180*PI()),IF(Charts!$B$5='Chart Data'!$E$3,E8*COS(Q8/180*PI()),IF(Charts!$B$5='Chart Data'!$F$3,F8*COS(Q8/180*PI()),""))) -> -0.132467342 | V8: 0 | W8: 0 | X8: 0.2309698831 | Y8: -0.09567085809 | Z8: 0.2309698831 | AA8: -0.09567085809 | AB8: 0.4619397663 | AC8: -0.1913417162 | AD8: 0.6929096494 | AE8: -0.2870125743 | AH8: 130.9090909 | AI8: 1 | AJ8: 1 | AK8: 1 | AL8: 1 | AM8: 1 | AN8: 1 | AO8: 1 | AP8: 1 | AQ8: 1 | AR8: 1 | AS8: 1
A9: ONRC | B9: Maintenance Activity | C9: =VLOOKUP($C$3,'ONRC Category Results'!$A:$G,4,FALSE)/100 -> 1 | D9: =VLOOKUP($D$3,'Region & Peer Group Results'!$A$34:$AA$35,24,FALSE)/100 -> 0.6764705882 | E9: =VLOOKUP($E$3,'Region & Peer Group Results'!$A$5:$AA$15,24,FALSE)/100 -> 0.7407407407 | F9: =VLOOKUP($F$3,'Region & Peer Group Results'!$A$22:$AA$27,24,FALSE)/100 -> 0.6923076923 | G9: 0 | H9: 0.5833333333 | I9: 0.6666666667 | J9: 1 | K9: 1 | L9: 1 | M9: 0.04166666667 | N9: 120 | O9: =360*SUM($M$3:M9) -> 135 | P9: Maintenance Activtity | Q9: 127.5 | R9: 0.7933533403 | S9: -0.608761429 | T9: =IF(Charts!$B$5='Chart Data'!$D$3,D9*SIN(Q9/180*PI()),IF(Charts!$B$5='Chart Data'!$E$3,E9*SIN(Q9/180*PI()),IF(Charts!$B$5='Chart Data'!$F$3,F9*SIN(Q9/180*PI()),""))) -> 0.5492446202 | U9: =IF(Charts!$B$5='Chart Data'!$D$3,D9*COS(Q9/180*PI()),IF(Charts!$B$5='Chart Data'!$E$3,E9*COS(Q9/180*PI()),IF(Charts!$B$5='Chart Data'!$F$3,F9*COS(Q9/180*PI()),""))) -> -0.4214502201 | V9: 0 | W9: 0 | X9: 0.4627894485 | Y9: -0.3551108336 | Z9: 0.5289022269 | AA9: -0.4058409527 | AB9: 0.7933533403 | AC9: -0.608761429 | AD9: 0.7933533403 | AE9: -0.608761429 | AH9: 147.2727273 | AI9: 1 | AJ9: 1 | AK9: 1 | AL9: 1 | AM9: 1 | AN9: 1 | AO9: 1 | AP9: 1 | AQ9: 1 | AR9: 1 | AS9: 1
A10: ONRC | B10: Condition | C10: =VLOOKUP($C$3,'ONRC Category Results'!$A:$G,5,FALSE)/100 -> 1 | D10: =VLOOKUP($D$3,'Region & Peer Group Results'!$A$34:$AA$35,25,FALSE)/100 -> 0.9117647059 | E10: =VLOOKUP($E$3,'Region & Peer Group Results'!$A$5:$AA$15,25,FALSE)/100 -> 1 | F10: =VLOOKUP($F$3,'Region & Peer Group Results'!$A$22:$AA$27,25,FALSE)/100 -> 0.9423076923 | G10: 0.5 | H10: 1 | I10: 1 | J10: 1 | K10: 1 | L10: 1 | M10: 0.04166666667 | N10: 135 | O10: =360*SUM($M$3:M10) -> 150 | P10: Condition | Q10: 142.5 | R10: 0.608761429 | S10: -0.7933533403 | T10: =IF(Charts!$B$5='Chart Data'!$D$3,D10*SIN(Q10/180*PI()),IF(Charts!$B$5='Chart Data'!$E$3,E10*SIN(Q10/180*PI()),IF(Charts!$B$5='Chart Data'!$F$3,F10*SIN(Q10/180*PI()),""))) -> 0.5736405773 | U10: =IF(Charts!$B$5='Chart Data'!$D$3,D10*COS(Q10/180*PI()),IF(Charts!$B$5='Chart Data'!$E$3,E10*COS(Q10/180*PI()),IF(Charts!$B$5='Chart Data'!$F$3,F10*COS(Q10/180*PI()),""))) -> -0.7475829553 | V10: 0.3043807145 | W10: -0.3966766701 | X10: 0.608761429 | Y10: -0.7933533403 | Z10: 0.608761429 | AA10: -0.7933533403 | AB10: 0.608761429 | AC10: -0.7933533403 | AD10: 0.608761429 | AE10: -0.7933533403 | AH10: 163.6363636 | AI10: 1 | AJ10: 1 | AK10: 1 | AL10: 1 | AM10: 1 | AN10: 1 | AO10: 1 | AP10: 1 | AQ10: 1 | AR10: 1 | AS10: 1
A11: ONRC | B11: Demand | C11: =VLOOKUP($C$3,'ONRC Category Results'!$A:$G,6,FALSE)/100 -> 0.6666666667 | D11: =VLOOKUP($D$3,'Region & Peer Group Results'!$A$34:$AA$35,26,FALSE)/100 -> 0.5738795518 | E11: =VLOOKUP($E$3,'Region & Peer Group Results'!$A$5:$AA$15,26,FALSE)/100 -> 0.7195767196 | F11: =VLOOKUP($F$3,'Region & Peer Group Results'!$A$22:$AA$27,26,FALSE)/100 -> 0.5906593407 | G11: 0.3333333333 | H11: 0.4166666667 | I11: 0.5555555556 | J11: 0.7777777778 | K11: 0.7777777778 | L11: 1 | M11: 0.04166666667 | N11: 150 | O11: =360*SUM($M$3:M11) -> 165 | P11: Demand | Q11: 157.5 | R11: 0.2551222882 | S11: -0.6159196883 | T11: =IF(Charts!$B$5='Chart Data'!$D$3,D11*SIN(Q11/180*PI()),IF(Charts!$B$5='Chart Data'!$E$3,E11*SIN(Q11/180*PI()),IF(Charts!$B$5='Chart Data'!$F$3,F11*SIN(Q11/180*PI()),""))) -> 0.2260355438 | U11: =IF(Charts!$B$5='Chart Data'!$D$3,D11*COS(Q11/180*PI()),IF(Charts!$B$5='Chart Data'!$E$3,E11*COS(Q11/180*PI()),IF(Charts!$B$5='Chart Data'!$F$3,F11*COS(Q11/180*PI()),""))) -> -0.5456980755 | V11: 0.1275611441 | W11: -0.3079598442 | X11: 0.1594514302 | Y11: -0.3849498052 | Z11: 0.2126019069 | AA11: -0.513266407 | AB11: 0.2976426696 | AC11: -0.7185729697 | AD11: 0.2976426696 | AE11: -0.7185729697 | AH11: 180 | AI11: 1 | AJ11: 1 | AK11: 1 | AL11: 1 | AM11: 1 | AN11: 1 | AO11: 1 | AP11: 1 | AQ11: 1 | AR11: 1 | AS11: 1
A12: ONRC | B12: Crash | C12: =VLOOKUP($C$3,'ONRC Category Results'!$A:$G,7,FALSE)/100 -> 0.5 | D12: =VLOOKUP($D$3,'Region & Peer Group Results'!$A$34:$AA$35,27,FALSE)/100 -> 0.375 | E12: =VLOOKUP($E$3,'Region & Peer Group Results'!$A$5:$AA$15,27,FALSE)/100 -> 0.4444444444 | F12: =VLOOKUP($F$3,'Region & Peer Group Results'!$A$22:$AA$27,27,FALSE)/100 -> 0.4423076923 | G12: 0 | H12: 0.375 | I12: 0.5 | J12: 0.5 | K12: 0.5 | L12: 1 | M12: 0.04166666667 | N12: 165 | O12: =360*SUM($M$3:M12) -> 180 | P12: Crash | Q12: 172.5 | R12: 0.06526309611 | S12: -0.4957224307 | T12: =IF(Charts!$B$5='Chart Data'!$D$3,D12*SIN(Q12/180*PI()),IF(Charts!$B$5='Chart Data'!$E$3,E12*SIN(Q12/180*PI()),IF(Charts!$B$5='Chart Data'!$F$3,F12*SIN(Q12/180*PI()),""))) -> 0.05773273887 | U12: =IF(Charts!$B$5='Chart Data'!$D$3,D12*COS(Q12/180*PI()),IF(Charts!$B$5='Chart Data'!$E$3,E12*COS(Q12/180*PI()),IF(Charts!$B$5='Chart Data'!$F$3,F12*COS(Q12/180*PI()),""))) -> -0.4385236887 | V12: 0 | W12: 0 | X12: 0.04894732208 | Y12: -0.371791823 | Z12: 0.06526309611 | AA12: -0.4957224307 | AB12: 0.06526309611 | AC12: -0.4957224307 | AD12: 0.06526309611 | AE12: -0.4957224307 | AH12: 196.3636364 | AI12: 1 | AJ12: 1 | AK12: 1 | AL12: 1 | AM12: 1 | AN12: 1 | AO12: 1 | AP12: 1 | AQ12: 1 | AR12: 1 | AS12: 1
A13: Asset Management | B13: Condition | C13: =VLOOKUP($C$3,'RCA Results Table'!$A$5:$T$73,18,FALSE)/100 -> 1 | D13: =VLOOKUP($D$3,'Region & Peer Group Results'!$A$34:$AA$35,18,FALSE)/100 -> 0.5882352941 | E13: =VLOOKUP($E$3,'Region & Peer Group Results'!$A$5:$AA$15,18,FALSE)/100 -> 0.6666666667 | F13: =VLOOKUP($F$3,'Region & Peer Group Results'!$A$22:$AA$27,18,FALSE)/100 -> 0.5769230769 | G13: 0 | H13: 0.375 | I13: 0.5 | J13: 1 | K13: 0.6 | L13: =6/4 -> 1.5 | M13: 0.0625 | N13: 180 | O13: =360*SUM($M$3:M13) -> 202.5 | P13: Condition | Q13: 191.25 | R13: -0.195090322 | S13: -0.9807852804 | T13: =IF(Charts!$B$5='Chart Data'!$D$3,D13*SIN(Q13/180*PI()),IF(Charts!$B$5='Chart Data'!$E$3,E13*SIN(Q13/180*PI()),IF(Charts!$B$5='Chart Data'!$F$3,F13*SIN(Q13/180*PI()),""))) -> -0.1125521089 | U13: =IF(Charts!$B$5='Chart Data'!$D$3,D13*COS(Q13/180*PI()),IF(Charts!$B$5='Chart Data'!$E$3,E13*COS(Q13/180*PI()),IF(Charts!$B$5='Chart Data'!$F$3,F13*COS(Q13/180*PI()),""))) -> -0.5658376618 | V13: 0 | W13: 0 | X13: -0.07315887076 | Y13: -0.3677944802 | Z13: -0.09754516101 | AA13: -0.4903926402 | AB13: -0.195090322 | AC13: -0.9807852804 | AD13: -0.1170541932 | AE13: -0.5884711682 | AH13: 220.9090909 | AI13: 1.5 | AJ13: 1.5 | AK13: 1.5 | AL13: 1.5 | AM13: 1.5 | AN13: 1.5 | AO13: 1.5 | AP13: 1.5 | AQ13: 1.5 | AR13: 1.5 | AS13: 1.5
A14: Asset Management | B14: Maintenance Activity | C14: =VLOOKUP($C$3,'RCA Results Table'!$A$5:$T$73,19,FALSE)/100 -> 0.75 | D14: =VLOOKUP($D$3,'Region & Peer Group Results'!$A$34:$AA$35,19,FALSE)/100 -> 0.5110294118 | E14: =VLOOKUP($E$3,'Region & Peer Group Results'!$A$5:$AA$15,19,FALSE)/100 -> 0.4722222222 | F14: =VLOOKUP($F$3,'Region & Peer Group Results'!$A$22:$AA$27,19,FALSE)/100 -> 0.5288461538 | G14: 0 | H14: 0.5 | I14: 0.5 | J14: 0.75 | K14: 0.75 | L14: =6/4 -> 1.5 | M14: 0.0625 | N14: 202.5 | O14: =360*SUM($M$3:M14) -> 225 | P14: Maintenance Activtity | Q14: 213.75 | R14: -0.4166776748 | S14: -0.6236022092 | T14: =IF(Charts!$B$5='Chart Data'!$D$3,D14*SIN(Q14/180*PI()),IF(Charts!$B$5='Chart Data'!$E$3,E14*SIN(Q14/180*PI()),IF(Charts!$B$5='Chart Data'!$F$3,F14*SIN(Q14/180*PI()),""))) -> -0.2938111809 | U14: =IF(Charts!$B$5='Chart Data'!$D$3,D14*COS(Q14/180*PI()),IF(Charts!$B$5='Chart Data'!$E$3,E14*COS(Q14/180*PI()),IF(Charts!$B$5='Chart Data'!$F$3,F14*COS(Q14/180*PI()),""))) -> -0.4397195065 | V14: 0 | W14: 0 | X14: -0.2777851165 | Y14: -0.4157348062 | Z14: -0.2777851165 | AA14: -0.4157348062 | AB14: -0.4166776748 | AC14: -0.6236022092 | AD14: -0.4166776748 | AE14: -0.6236022092 | AH14: 245.4545455 | AI14: 1.5 | AJ14: 1.5 | AK14: 1.5 | AL14: 1.5 | AM14: 1.5 | AN14: 1.5 | AO14: 1.5 | AP14: 1.5 | AQ14: 1.5 | AR14: 1.5 | AS14: 1.5
A15: Asset Management | B15: Asset Inventory | C15: =VLOOKUP($C$3,'RCA Results Table'!$A$5:$T$73,17,FALSE)/100 -> 0.4285714286 | D15: =VLOOKUP($D$3,'Region & Peer Group Results'!$A$34:$AA$35,17,FALSE)/100 -> 0.4304869442 | E15: =VLOOKUP($E$3,'Region & Peer Group Results'!$A$5:$AA$15,17,FALSE)/100 -> 0.4304812834 | F15: =VLOOKUP($F$3,'Region & Peer Group Results'!$A$22:$AA$27,17,FALSE)/100 -> 0.4023941068 | G15: 0.2272727273 | H15: 0.2727272727 | I15: 0.3636363636 | J15: 0.4545454545 | K15: 0.5 | L15: =6/4 -> 1.5 | M15: 0.0625 | N15: 225 | O15: =360*SUM($M$3:M15) -> 247.5 | P15: Asset Inventory | Q15: 236.25 | R15: -0.3563441196 | S15: -0.2381015284 | T15: =IF(Charts!$B$5='Chart Data'!$D$3,D15*SIN(Q15/180*PI()),IF(Charts!$B$5='Chart Data'!$E$3,E15*SIN(Q15/180*PI()),IF(Charts!$B$5='Chart Data'!$F$3,F15*SIN(Q15/180*PI()),""))) -> -0.334578472 | U15: =IF(Charts!$B$5='Chart Data'!$D$3,D15*COS(Q15/180*PI()),IF(Charts!$B$5='Chart Data'!$E$3,E15*COS(Q15/180*PI()),IF(Charts!$B$5='Chart Data'!$F$3,F15*COS(Q15/180*PI()),""))) -> -0.2235581877 | V15: -0.1889703664 | W15: -0.126265962 | X15: -0.2267644397 | Y15: -0.1515191545 | Z15: -0.3023525863 | AA15: -0.2020255393 | AB15: -0.3779407329 | AC15: -0.2525319241 | AD15: -0.4157348062 | AE15: -0.2777851165 | AH15: 270 | AI15: 1.5 | AJ15: 1.5 | AK15: 1.5 | AL15: 1.5 | AM15: 1.5 | AN15: 1.5 | AO15: 1.5 | AP15: 1.5 | AQ15: 1.5 | AR15: 1.5 | AS15: 1.5
A16: Asset Management | B16: Network | C16: =VLOOKUP($C$3,'RCA Results Table'!$A$5:$T$73,16,FALSE)/100 -> 1 | D16: =VLOOKUP($D$3,'Region & Peer Group Results'!$A$34:$AA$35,16,FALSE)/100 -> 0.4339622642 | E16: =VLOOKUP($E$3,'Region & Peer Group Results'!$A$5:$AA$15,16,FALSE)/100 -> 0.5277777778 | F16: =VLOOKUP($F$3,'Region & Peer Group Results'!$A$22:$AA$27,16,FALSE)/100 -> 0.5445544554 | G16: 0 | H16: 0.25 | I16: 0.375 | J16: 0.5 | K16: 0.75 | L16: =6/4 -> 1.5 | M16: 0.0625 | N16: 247.5 | O16: =360*SUM($M$3:M16) -> 270 | P16: Network | Q16: 258.75 | R16: -0.9807852804 | S16: -0.195090322 | T16: =IF(Charts!$B$5='Chart Data'!$D$3,D16*SIN(Q16/180*PI()),IF(Charts!$B$5='Chart Data'!$E$3,E16*SIN(Q16/180*PI()),IF(Charts!$B$5='Chart Data'!$F$3,F16*SIN(Q16/180*PI()),""))) -> -0.5340909943 | U16: =IF(Charts!$B$5='Chart Data'!$D$3,D16*COS(Q16/180*PI()),IF(Charts!$B$5='Chart Data'!$E$3,E16*COS(Q16/180*PI()),IF(Charts!$B$5='Chart Data'!$F$3,F16*COS(Q16/180*PI()),""))) -> -0.1062373041 | V16: 0 | W16: 0 | X16: -0.2451963201 | Y16: -0.0487725805 | Z16: -0.3677944802 | AA16: -0.07315887076 | AB16: -0.4903926402 | AC16: -0.09754516101 | AD16: -0.7355889603 | AE16: -0.1463177415 | AH16: 294.5454545 | AI16: 1.5 | AJ16: 1.5 | AK16: 1.5 | AL16: 1.5 | AM16: 1.5 | AN16: 1.5 | AO16: 1.5 | AP16: 1.5 | AQ16: 1.5 | AR16: 1.5 | AS16: 1.5
A17: Asset Management | B17: Timeliness | C17: =VLOOKUP($C$3,'RCA Results Table'!$A$5:$T$73,15,FALSE)/100 -> 0.6666666667 | D17: =VLOOKUP($D$3,'Region & Peer Group Results'!$A$34:$AA$35,15,FALSE)/100 -> 0.4475873544 | E17: =VLOOKUP($E$3,'Region & Peer Group Results'!$A$5:$AA$15,15,FALSE)/100 -> 0.4873417722 | F17: =VLOOKUP($F$3,'Region & Peer Group Results'!$A$22:$AA$27,15,FALSE)/100 -> 0.4307359307 | G17: 0.1 | H17: 0.275 | I17: 0.4 | J17: 0.5 | K17: 0.5590909091 | L17: 2 | M17: 0.08333333333 | N17: 270 | O17: =360*SUM($M$3:M17) -> 300 | P17: Timeliness | Q17: 285 | R17: -0.6439505509 | S17: 0.1725460301 | T17: =IF(Charts!$B$5='Chart Data'!$D$3,D17*SIN(Q17/180*PI()),IF(Charts!$B$5='Chart Data'!$E$3,E17*SIN(Q17/180*PI()),IF(Charts!$B$5='Chart Data'!$F$3,F17*SIN(Q17/180*PI()),""))) -> -0.4160589598 | U17: =IF(Charts!$B$5='Chart Data'!$D$3,D17*COS(Q17/180*PI()),IF(Charts!$B$5='Chart Data'!$E$3,E17*COS(Q17/180*PI()),IF(Charts!$B$5='Chart Data'!$F$3,F17*COS(Q17/180*PI()),""))) -> 0.1114826623 | V17: -0.09659258263 | W17: 0.02588190451 | X17: -0.2656296022 | Y17: 0.0711752374 | Z17: -0.3863703305 | AA17: 0.103527618 | AB17: -0.4829629131 | AC17: 0.1294095226 | AD17: -0.5400403483 | AE17: 0.1447033752 | AH17: 327.2727273 | AI17: 2 | AJ17: 2 | AK17: 2 | AL17: 2 | AM17: 2 | AN17: 2 | AO17: 2 | AP17: 2 | AQ17: 2 | AR17: 2 | AS17: 2
A18: Asset Management | B18: Completeness | C18: =VLOOKUP($C$3,'RCA Results Table'!$A$5:$T$73,14,FALSE)/100 -> 0.5 | D18: =VLOOKUP($D$3,'Region & Peer Group Results'!$A$34:$AA$35,14,FALSE)/100 -> 0.493872549 | E18: =VLOOKUP($E$3,'Region & Peer Group Results'!$A$5:$AA$15,14,FALSE)/100 -> 0.462962963 | F18: =VLOOKUP($F$3,'Region & Peer Group Results'!$A$22:$AA$27,14,FALSE)/100 -> 0.4775641026 | G18: 0.25 | H18: 0.3333333333 | I18: 0.5 | J18: 0.6666666667 | K18: 0.75 | L18: 2 | M18: 0.08333333333 | N18: 300 | O18: =360*SUM($M$3:M18) -> 330 | P18: Completeness | Q18: 315 | R18: -0.3535533906 | S18: 0.3535533906 | T18: =IF(Charts!$B$5='Chart Data'!$D$3,D18*SIN(Q18/180*PI()),IF(Charts!$B$5='Chart Data'!$E$3,E18*SIN(Q18/180*PI()),IF(Charts!$B$5='Chart Data'!$F$3,F18*SIN(Q18/180*PI()),""))) -> -0.3376888154 | U18: =IF(Charts!$B$5='Chart Data'!$D$3,D18*COS(Q18/180*PI()),IF(Charts!$B$5='Chart Data'!$E$3,E18*COS(Q18/180*PI()),IF(Charts!$B$5='Chart Data'!$F$3,F18*COS(Q18/180*PI()),""))) -> 0.3376888154 | V18: -0.1767766953 | W18: 0.1767766953 | X18: -0.2357022604 | Y18: 0.2357022604 | Z18: -0.3535533906 | AA18: 0.3535533906 | AB18: -0.4714045208 | AC18: 0.4714045208 | AD18: -0.5303300859 | AE18: 0.5303300859 | AH18: 360 | AI18: 2 | AJ18: 2 | AK18: 2 | AL18: 2 | AM18: 2 | AN18: 2 | AO18: 2 | AP18: 2 | AQ18: 2 | AR18: 2 | AS18: 2
A19: Asset Management | B19: Accuracy | C19: =VLOOKUP($C$3,'RCA Results Table'!$A$5:$T$73,13,FALSE)/100 -> 0.6 | D19: =VLOOKUP($D$3,'Region & Peer Group Results'!$A$34:$AA$35,13,FALSE)/100 -> 0.4041604755 | E19: =VLOOKUP($E$3,'Region & Peer Group Results'!$A$5:$AA$15,13,FALSE)/100 -> 0.4444444444 | F19: =VLOOKUP($F$3,'Region & Peer Group Results'!$A$22:$AA$27,13,FALSE)/100 -> 0.4280155642 | G19: 0.2 | H19: 0.3 | I19: 0.4 | J19: 0.5 | K19: 1 | L19: 2 | M19: 0.08333333333 | N19: 330 | O19: =360*SUM($M$3:M19) -> 360 | P19: Accuracy | Q19: 345 | R19: -0.1552914271 | S19: 0.5795554958 | T19: =IF(Charts!$B$5='Chart Data'!$D$3,D19*SIN(Q19/180*PI()),IF(Charts!$B$5='Chart Data'!$E$3,E19*SIN(Q19/180*PI()),IF(Charts!$B$5='Chart Data'!$F$3,F19*SIN(Q19/180*PI()),""))) -> -0.1107785796 | U19: =IF(Charts!$B$5='Chart Data'!$D$3,D19*COS(Q19/180*PI()),IF(Charts!$B$5='Chart Data'!$E$3,E19*COS(Q19/180*PI()),IF(Charts!$B$5='Chart Data'!$F$3,F19*COS(Q19/180*PI()),""))) -> 0.4134312875 | V19: -0.05176380902 | W19: 0.1931851653 | X19: -0.07764571353 | Y19: 0.2897777479 | Z19: -0.103527618 | AA19: 0.3863703305 | AB19: -0.1294095226 | AC19: 0.4829629131 | AD19: -0.2588190451 | AE19: 0.9659258263 | AH19: 392.7272727 | AI19: 2 | AJ19: 2 | AK19: 2 | AL19: 2 | AM19: 2 | AN19: 2 | AO19: 2 | AP19: 2 | AQ19: 2 | AR19: 2 | AS19: 2
A20: ONRC | B20: =B4 -> Accuracy | C20: =C4 -> 0.875 | D20: =D4/100 -> 0.006531862745 | E20: =E4 -> 0.712962963 | F20: 0.6565008026 | G20: =G4 -> 0.5133333333 | H20: 0.6 | I20: 0.6666666667 | J20: 0.7333333333 | K20: 0.8666666667 | L20: 2 | M20: 0.08333333333 | N20: 0 | O20: 30 | P20: Accuracy | Q20: 15 | R20: 0.2264666645 | S20: 0.845185098 | T20: 0.1699149108 | U20: 0.6341310802 | V20: 0.1328604432 | W20: 0.4958419242 | X20: 0.1552914271 | Y20: 0.5795554958 | Z20: 0.1725460301 | AA20: 0.6439505509 | AB20: 0.1898006331 | AC20: 0.7083456059 | AD20: 0.2243098391 | AE20: 0.8371357161
